bitfinex-derivatives/quotes_SOLF0:USTF0_20220104
["timestamp","ask_amount","ask_price","bid_price","bid_amount"]
[1641339475292,20.97572185,168.68,168.66,1.46]
[1641339475491,20.97572185,168.68,168.67,1.46]
[1641339475894,20.97572185,168.68,168.64,4.14834427]
[1641339476093,20.97572185,168.68,168.65,1.46]
[1641339476293,20.97572185,168.68,168.64,4.14834427]
[1641339476694,33.51295675,168.68,168.64,1.46]
[1641339476893,33.51295675,168.68,168.63,4.14834427]
[1641339477094,33.51295675,168.68,168.65,1.46]
[1641339477294,12.5372349,168.67,168.66,1.46]
[1641339478095,12.5372349,168.69,168.66,1.46]
[1641339478297,12.5372349,168.69,168.65,10.48934427]
[1641339478496,17.1282349,168.69,168.65,10.48934427]
[1641339478997,17.1282349,168.69,168.66,1.46]
[1641339480097,17.1282349,168.69,168.67,0.66899612]
[1641339480297,27.66479,168.68,168.67,0.66899612]
[1641339480698,40.2020249,168.68,168.67,0.66899612]
[1641339481099,40.2020249,168.68,168.65,2.12899612]
[1641339481300,40.2020249,168.68,168.66,1.46]
[1641339481598,40.2020249,168.68,168.66,2.12899612]
[1641339481900,40.2020249,168.68,168.67,0.66899612]
[1641339486213,40.2020249,168.68,168.67,2.12899612]
[1641339486414,40.2020249,168.68,168.67,1.46]
[1641339486714,12.5372349,168.68,168.67,2.12899612]
[1641339488013,12.5372349,168.68,168.67,6.12899612]
[1641339488215,6.83286208,168.7,168.67,6.12899612]
[1641339488518,12.54007005,168.72,168.69,1.46]
[1641339488715,12.54007005,168.72,168.68,4.0]
[1641339488716,12.54007005,168.72,168.71,1.46]
[1641339489115,12.54007005,168.72,168.71,2.12899612]
[1641339489817,27.66479,168.74,168.71,2.12899612]
[1641339490415,27.66479,168.74,168.7,4.17975014]
[1641339490615,1.52960359,168.73,168.66,4.0]
[1641339490817,1.52960359,168.73,168.72,1.46]
[1641339492417,1.52960359,168.73,168.72,2.1289157]
[1641339494617,27.66479,168.74,168.72,2.1289157]
[1641339495019,27.66479,168.74,168.72,1.46]
[1641339496322,27.66479,168.74,168.71,1.46]
[1641339496522,37.84179,168.74,168.66,4.17975014]
[1641339496722,4.0,168.71,168.66,4.17975014]
[1641339497122,63.9014,168.73,168.67,0.6690119]
[1641339497321,4.0,168.71,168.67,0.6690119]
[1641339497523,1.39725859,168.7,168.67,0.6690119]
[1641339497823,6.32325859,168.7,168.62,0.6690119]
[1641339498321,27.66479,168.67,168.62,0.6690119]
[1641339501328,1.42598386,168.66,168.64,4.17975014]
[1641339501527,6.91198386,168.66,168.64,4.17975014]
[1641339501925,6.91198386,168.66,168.65,0.6690119]
[1641339502126,5.486,168.66,168.65,0.6690119]
[1641339506631,27.66479,168.67,168.65,0.6690119]
[1641339510437,27.66479,168.67,168.63,0.6690119]
[1641339510839,31.66479,168.67,168.62,0.6690119]
[1641339511238,31.66479,168.67,168.6,0.6690119]
[1641339511739,27.66479,168.67,168.6,0.6690119]
[1641339514041,27.66479,168.67,168.62,4.0]
[1641339514241,27.66479,168.67,168.61,4.0]
[1641339514643,27.66479,168.67,168.62,0.6690119]
[1641339516041,27.66479,168.67,168.61,0.6690119]
[1641339516441,27.66479,168.67,168.61,4.6690119]
[1641339516945,27.66479,168.67,168.62,0.6690119]
[1641339517544,59.5889,168.69,168.62,0.6690119]
[1641339517942,1.41742226,168.68,168.62,0.6690119]
[1641339518947,29.08221226,168.68,168.62,0.6690119]
[1641339520053,27.66479,168.68,168.62,0.6690119]
[1641339520551,27.66479,168.68,168.62,4.84876204]
[1641339520750,12.46099211,168.66,168.62,4.84876204]
[1641339520950,16.77699211,168.66,168.63,0.6690119]
[1641339521351,16.77699211,168.66,168.6,1.02876204]
[1641339521550,16.77699211,168.66,168.59,57.606]
[1641339522251,2.97123796,168.63,168.59,57.606]
[1641339522451,2.97123796,168.63,168.6,2.71741816]
[1641339522652,2.97123796,168.63,168.6,0.66919792]
[1641339523053,2.97123796,168.63,168.59,0.66919792]
[1641339523653,64.2569,168.64,168.59,0.66919792]
[1641339524354,67.22813796,168.64,168.59,0.66919792]
[1641339524753,64.2569,168.64,168.59,0.66919792]
[1641339524953,67.22813796,168.64,168.59,0.66919792]
[1641339525555,2.97123796,168.62,168.59,0.66919792]
[1641339525754,9.00923796,168.62,168.59,0.66919792]
[1641339526254,9.00923796,168.62,168.58,0.66919792]
[1641339528362,6.038,168.62,168.58,1.69795996]
[1641339528861,6.038,168.62,168.59,0.66919792]
[1641339530063,6.038,168.62,168.59,1.69795996]
[1641339530265,6.038,168.62,168.59,0.66919792]
[1641339531065,67.22813796,168.64,168.59,0.66919792]
[1641339532264,2.97123796,168.62,168.59,0.66919792]
[1641339532464,73.1969,168.64,168.59,0.66919792]
[1641339533065,2.97123796,168.61,168.58,0.66919792]
[1641339533264,8.33823796,168.61,168.58,0.66919792]
[1641339533464,8.33823796,168.61,168.57,0.66919792]
[1641339533864,5.367,168.61,168.57,0.66919792]
[1641339534164,2.97123796,168.58,168.57,0.66919792]
[1641339534364,2.97123796,168.58,168.52,33.4324221]
[1641339534564,62.0323,168.6,168.5,1.02876204]
[1641339534964,2.97123796,168.55,168.5,1.02876204]
[1641339535264,9.08723796,168.55,168.5,1.02876204]
[1641339535668,2.97123796,168.52,168.51,0.6694476]
[1641339536265,2.97123796,168.52,168.49,10.62996831]
[1641339536766,2.97123796,168.52,168.5,0.6694476]
[1641339536969,9.08723796,168.55,168.5,0.6694476]
[1641339537469,6.116,168.55,168.48,0.6694476]
[1641339538169,6.116,168.55,168.48,1.69820964]
[1641339538370,2.97123796,168.54,168.48,0.6694476]
[1641339539171,2.97123796,168.54,168.48,1.69820964]
[1641339539571,61.3948,168.56,168.48,1.69820964]
[1641339539771,61.3948,168.56,168.49,0.6694476]
[1641339540671,61.3948,168.56,168.51,1.02876204]
[1641339540871,2.97123796,168.58,168.53,1.02876204]
[1641339541073,64.2759,168.61,168.54,1.02876204]
[1641339541274,2.97123796,168.59,168.52,1.69820964]
[1641339541472,91.94069,168.61,168.52,29.36299964]
[1641339541672,2.97123796,168.59,168.53,0.6694476]
[1641339541873,2.97123796,168.59,168.54,1.02876204]
[1641339542074,33.41969813,168.63,168.58,1.02876204]
[1641339542273,33.41969813,168.63,168.58,6.95676204]
[1641339542475,33.41969813,168.63,168.58,5.928]
[1641339542975,40.47971929,168.67,168.58,5.928]
[1641339543173,40.47971929,168.67,168.58,6.95676204]
[1641339543373,40.47971929,168.67,168.59,0.6694476]
[1641339543573,40.47971929,168.67,168.59,28.3342376]
[1641339543775,7.06002116,168.67,168.59,28.3342376]
[1641339543974,7.06002116,168.67,168.6,1.02876204]
[1641339544174,7.06002116,168.67,168.59,28.3342376]
[1641339544175,7.06002116,168.67,168.59,29.36299964]
[1641339544474,7.06002116,168.67,168.59,28.3342376]
[1641339544676,10.03125912,168.67,168.61,0.6694476]
[1641339545174,40.47971929,168.68,168.6,0.6694476]
[1641339545376,2.97123796,168.64,168.6,0.6694476]
[1641339545773,40.47971929,168.68,168.6,0.6694476]
[1641339546174,33.41969813,168.67,168.6,0.6694476]
[1641339547777,33.41969813,168.67,168.62,1.02876204]
[1641339548078,33.41969813,168.67,168.62,5.751]
[1641339548278,33.41969813,168.67,168.63,0.6694476]
[1641339548482,10.03125912,168.68,168.63,0.6694476]
[1641339548781,2.97123796,168.67,168.63,0.6694476]
[1641339549181,7.06002116,168.68,168.63,0.6694476]
[1641339549782,2.97123796,168.65,168.63,0.6694476]
[1641339549983,4.452,168.65,168.6,0.6694476]
[1641339550685,4.452,168.65,168.6,1.69820964]
[1641339551084,2.97123796,168.66,168.6,0.6694476]
[1641339551286,33.41969813,168.67,168.6,0.6694476]
[1641339551885,2.97123796,168.65,168.6,0.6694476]
[1641339552585,7.06002116,168.68,168.6,0.6694476]
[1641339552785,2.97123796,168.66,168.6,1.69820964]
[1641339552985,7.06002116,168.68,168.6,1.69820964]
[1641339553186,2.97123796,168.66,168.61,0.6694476]
[1641339553789,2.97123796,168.64,168.61,0.6694476]
[1641339553988,7.06002116,168.68,168.61,0.6694476]
[1641339554290,2.97123796,168.65,168.61,0.6694476]
[1641339554488,2.97123796,168.65,168.6,0.6694476]
[1641339554691,7.06002116,168.68,168.6,0.6694476]
[1641339556891,2.97123796,168.67,168.6,0.6694476]
[1641339557791,7.06002116,168.68,168.6,0.6694476]
[1641339558092,2.97123796,168.63,168.6,0.6694476]
[1641339558294,2.97123796,168.64,168.59,0.6694476]
[1641339558592,7.06002116,168.67,168.59,0.6694476]
[1641339559392,2.97123796,168.64,168.59,0.6694476]
[1641339559591,5.709,168.65,168.59,0.6694476]
[1641339559993,2.97123796,168.63,168.59,0.6694476]
[1641339560292,5.709,168.65,168.59,0.6694476]
[1641339560492,5.709,168.65,168.58,0.6694476]
[1641339561591,8.68023796,168.65,168.58,0.6694476]
[1641339562794,5.709,168.65,168.58,0.6694476]
[1641339563094,8.68023796,168.65,168.58,0.6694476]
[1641339563297,5.709,168.65,168.58,0.6694476]
[1641339563500,1.60107772,168.64,168.59,2.58098775]
[1641339563698,2.97123796,168.63,168.59,2.58098775]
[1641339563898,1.60107772,168.64,168.6,0.6694476]
[1641339564100,1.60107772,168.62,168.6,0.6694476]
[1641339564498,2.97123796,168.61,168.6,0.6694476]
[1641339565201,1.60107772,168.62,168.6,0.6694476]
[1641339565401,2.97123796,168.61,168.6,0.6694476]
[1641339565602,4.57231568,168.61,168.6,0.6694476]
[1641339566006,4.57231568,168.61,168.56,0.6694476]
[1641339566205,11.01431568,168.61,168.56,0.6694476]
[1641339566405,8.04307772,168.61,168.56,0.6694476]
[1641339566608,1.60107772,168.6,168.57,2.58087905]
[1641339567207,1.60107772,168.6,168.58,0.6694476]
[1641339568007,12.5468584,168.61,168.58,0.6694476]
[1641339568408,12.5468584,168.61,168.55,0.6694476]
[1641339568611,2.97123796,168.6,168.55,0.6694476]
[1641339568809,12.5468584,168.62,168.55,0.6694476]
[1641339569009,2.97123796,168.57,168.55,0.6694476]
[1641339569209,2.97123796,168.56,168.55,0.6694476]
[1641339569410,9.55323796,168.57,168.55,0.6694476]
[1641339569909,9.55323796,168.57,168.56,2.58080684]
[1641339569910,6.582,168.57,168.56,2.58080684]
[1641339570510,8.18435602,168.57,168.56,2.58080684]
[1641339570710,8.18435602,168.57,168.56,3.25025444]
[1641339572012,1.60235602,168.57,168.56,3.25025444]
[1641339572513,1.60235602,168.58,168.56,0.6694476]
[1641339572914,1.60235602,168.58,168.56,4.678]
[1641339573416,1.60235602,168.58,168.57,0.6694476]
[1641339573915,1.60235602,168.59,168.57,0.6694476]
[1641339574616,1.60235602,168.59,168.53,0.6694476]
[1641339575216,1.60235602,168.59,168.53,1.69820964]
[1641339575617,15.51809636,168.6,168.54,2.58077942]
[1641339575819,12.5468584,168.6,168.54,10.05422702]
[1641339576117,2.97123796,168.59,168.55,2.58077942]
[1641339576518,2.97123796,168.57,168.55,3.25022702]
[1641339576717,21.6268584,168.6,168.55,3.25022702]
[1641339576917,1.60235602,168.58,168.56,0.6694476]
[1641339577317,4.57359398,168.58,168.56,0.6694476]
[1641339577518,1.60235602,168.58,168.56,0.6694476]
[1641339577718,1.60235602,168.59,168.56,0.6694476]
[1641339578019,1.60235602,168.59,168.53,0.6694476]
[1641339578219,17.12045238,168.59,168.53,0.6694476]
[1641339578419,14.14921442,168.59,168.53,0.6694476]
[1641339578619,17.12045238,168.59,168.53,0.6694476]
[1641339578821,2.97123796,168.57,168.52,0.6694476]
[1641339579022,73.25081442,168.59,168.54,2.58076575]
[1641339579220,76.22205238,168.59,168.54,2.58076575]
[1641339579420,1.60235602,168.58,168.53,2.58076575]
[1641339579620,1.60235602,168.58,168.55,0.6694476]
[1641339580021,1.60235602,168.58,168.54,0.6694476]
[1641339581023,1.60235602,168.58,168.52,0.6694476]
[1641339581223,12.05123796,168.6,168.52,0.6694476]
[1641339581425,12.05123796,168.6,168.52,1.69820964]
[1641339581824,12.05123796,168.6,168.53,0.6694476]
[1641339582223,9.08,168.6,168.53,0.6694476]
[1641339582424,2.97123796,168.59,168.53,0.6694476]
[1641339582823,2.97123796,168.59,168.53,7.40151935]
[1641339583023,2.97123796,168.59,168.53,6.73207175]
[1641339583432,2.97123796,168.59,168.54,0.6694476]
[1641339583831,2.97123796,168.59,168.53,0.6694476]
[1641339584033,2.97123796,168.54,168.53,4.83277749]
[1641339584234,7.78423796,168.54,168.53,4.83277749]
[1641339584431,7.78423796,168.54,168.49,12.5468584]
[1641339584631,2.97123796,168.5,168.49,12.5468584]
[1641339584832,8.24723796,168.5,168.49,12.5468584]
[1641339585434,5.276,168.5,168.49,12.5468584]
[1641339585634,5.276,168.5,168.49,13.2163517]
[1641339585834,62.7832,168.54,168.49,0.6694933]
[1641339586036,2.97123796,168.51,168.49,0.6694933]
[1641339586234,6.642,168.53,168.49,0.6694933]
[1641339586434,6.642,168.53,168.44,13.57562044]
[1641339586435,2.97123796,168.5,168.45,0.6694933]
[1641339587535,6.642,168.53,168.45,0.6694933]
[1641339587835,4.0,168.52,168.44,0.6694933]
[1641339588034,2.97123796,168.46,168.44,0.6694933]
[1641339588235,7.14823796,168.46,168.44,0.6694933]
[1641339588435,2.97123796,168.45,168.44,0.6694933]
[1641339588838,2.97123796,168.47,168.44,0.6694933]
[1641339589540,2.97123796,168.48,168.44,0.6694933]
[1641339590839,2.97123796,168.48,168.44,28.62839487]
[1641339591038,2.97123796,168.51,168.45,1.02876204]
[1641339591238,12.5468584,168.52,168.45,1.69825534]
[1641339591438,75.3085584,168.54,168.46,12.5468584]
[1641339591638,75.3085584,168.54,168.46,13.2163517]
[1641339591839,2.97123796,168.49,168.46,13.2163517]
[1641339592040,75.3085584,168.54,168.47,0.6694933]
[1641339592738,14.15113807,168.53,168.47,0.6694933]
[1641339593339,2.97123796,168.49,168.47,0.6694933]
[1641339593540,2.97123796,168.49,168.46,0.6694933]
[1641339594041,12.5468584,168.52,168.46,0.6694933]
[1641339594242,2.97123796,168.49,168.46,0.6694933]
[1641339595241,12.5468584,168.53,168.46,0.6694933]
[1641339595442,12.5468584,168.52,168.46,0.6694933]
[1641339596743,14.21510489,168.52,168.46,0.6694933]
[1641339597145,14.21510489,168.52,168.45,0.6694933]
[1641339597544,12.5468584,168.52,168.45,0.6694933]
[1641339600547,12.5468584,168.51,168.45,0.6694933]
[1641339602248,62.7617,168.54,168.45,0.6694933]
[1641339602449,4.0,168.53,168.45,0.6694933]
[1641339602849,62.7617,168.54,168.43,28.3342833]
[1641339603256,62.7617,168.54,168.44,0.6694933]
[1641339603651,4.0,168.53,168.44,0.6694933]
[1641339603852,9.344,168.53,168.44,0.6694933]
[1641339604552,5.344,168.53,168.44,0.6694933]
[1641339606156,9.344,168.53,168.44,0.6694933]
[1641339606956,4.0,168.52,168.44,0.6694933]
[1641339607255,9.344,168.53,168.44,0.6694933]
[1641339608359,5.344,168.53,168.44,0.6694933]
[1641339608558,4.0,168.52,168.44,0.6694933]
[1641339608759,27.66479,168.52,168.44,0.6694933]
[1641339610262,31.66479,168.52,168.44,0.6694933]
[1641339610664,4.0,168.45,168.44,0.6694933]
[1641339610862,4.0,168.45,168.4,27.66479]
[1641339610863,61.01758,168.45,168.38,12.5468584]
[1641339611662,120.45448,168.45,168.38,12.5468584]
[1641339612262,14.21744972,168.44,168.39,3.18582216]
[1641339612662,14.21744972,168.44,168.4,0.66987619]
[1641339613063,12.5468584,168.42,168.4,0.66987619]
[1641339613566,12.5468584,168.42,168.36,0.66987619]
[1641339614566,12.5468584,168.42,168.37,2.51609835]
[1641339615167,12.5468584,168.42,168.38,0.66987619]
[1641339615971,12.5468584,168.42,168.37,0.66987619]
[1641339616969,12.5468584,168.42,168.35,0.66987619]
[1641339617171,16.5468584,168.42,168.35,0.66987619]
[1641339617471,4.0,168.41,168.35,0.66987619]
[1641339617672,6.545,168.41,168.38,1.17646856]
[1641339618071,10.545,168.41,168.38,6.856e-05]
[1641339618272,10.545,168.41,168.39,0.66987619]
[1641339618474,10.545,168.41,168.34,22.04707253]
[1641339618673,12.5468584,168.4,168.32,12.5468584]
[1641339618972,27.66479,168.39,168.32,12.5468584]
[1641339619673,27.66479,168.39,168.33,0.67003268]
[1641339620675,4.0,168.38,168.33,0.67003268]
[1641339620878,12.5468584,168.38,168.33,0.67003268]
[1641339621075,4.0,168.37,168.31,4.67689108]
[1641339621274,4.0,168.34,168.3,7.43710521]
[1641339621475,4.0,168.31,168.27,47.23014655]
[1641339621675,8.693,168.31,168.27,47.23014655]
[1641339621874,8.693,168.31,168.3,12.56457388]
[1641339622675,8.693,168.31,168.28,5.03736845]
[1641339622877,36.35779,168.31,168.3,0.67035043]
[1641339623479,36.35779,168.31,168.29,0.67035043]
[1641339623879,36.35779,168.31,168.27,0.67035043]
[1641339624279,36.35779,168.31,168.21,0.67035043]
[1641339624478,64.083,168.3,168.21,0.67035043]
[1641339625278,4.0,168.28,168.21,0.67035043]
[1641339625479,4.0,168.27,168.21,0.67035043]
[1641339625681,5.309,168.27,168.21,0.67035043]
[1641339625883,5.309,168.27,168.2,0.67035043]
[1641339626382,5.309,168.27,168.16,4.67035043]
[1641339626579,5.309,168.27,168.16,0.67035043]
[1641339626780,5.309,168.27,168.17,0.67035043]
[1641339627180,27.66479,168.26,168.16,0.67035043]
[1641339628781,31.66479,168.26,168.16,0.67035043]
[1641339629582,4.0,168.24,168.16,0.67035043]
[1641339629781,4.0,168.24,168.14,0.67035043]
[1641339630384,63.1596,168.25,168.14,0.67035043]
[1641339632485,63.1596,168.25,168.17,33.4324221]
[1641339632785,63.1596,168.25,168.18,0.67035043]
[1641339632986,63.1596,168.25,168.18,6.80135043]
[1641339633185,59.9838,168.26,168.19,27.66479]
[1641339633385,27.66479,168.29,168.19,27.66479]
[1641339633685,36.54479,168.29,168.19,27.66479]
[1641339633886,36.54479,168.29,168.2,34.10277253]
[1641339634088,8.88,168.29,168.2,34.10277253]
[1641339634287,8.88,168.29,168.21,0.67035043]
[1641339634288,12.88,168.29,168.21,0.67035043]
[1641339635089,12.88,168.29,168.21,34.10277253]
[1641339635288,27.66479,168.28,168.21,34.10277253]
[1641339635488,27.66479,168.28,168.22,0.67035043]
[1641339637292,27.66479,168.28,168.22,27.66479]
[1641339637792,27.66479,168.28,168.23,0.67035043]
[1641339638293,31.66479,168.28,168.23,0.67035043]
[1641339638692,31.66479,168.28,168.22,0.67035043]
[1641339638893,36.26579,168.28,168.22,0.67035043]
[1641339639095,4.0,168.27,168.22,0.67035043]
[1641339639594,4.0,168.27,168.21,0.67035043]
[1641339640192,63.93058,168.28,168.21,0.67035043]
[1641339640394,59.93058,168.28,168.21,0.67035043]
[1641339641194,59.93058,168.28,168.2,0.67035043]
[1641339641594,59.93058,168.28,168.2,34.10277253]
[1641339641996,4.0,168.27,168.2,34.10277253]
[1641339642197,4.0,168.26,168.2,34.10277253]
[1641339642399,4.0,168.26,168.21,0.67035043]
[1641339642596,59.93058,168.28,168.21,0.67035043]
[1641339642597,4.0,168.25,168.21,0.67035043]
[1641339642796,4.0,168.26,168.21,0.67035043]
[1641339643198,4.0,168.25,168.19,0.67035043]
[1641339643598,31.66479,168.25,168.19,0.67035043]
[1641339644301,27.66479,168.25,168.19,0.67035043]
[1641339644499,4.0,168.24,168.19,0.67035043]
[1641339644700,8.579,168.24,168.19,0.67035043]
[1641339644899,4.579,168.24,168.19,0.67035043]
[1641339645199,4.579,168.24,168.18,0.67035043]
[1641339646001,8.579,168.24,168.18,0.67035043]
[1641339647001,4.0,168.22,168.18,0.67035043]
[1641339647203,4.0,168.21,168.18,0.67035043]
[1641339647402,4.0,168.22,168.18,0.67035043]
[1641339647603,31.66479,168.2,168.18,5.043e-05]
[1641339647803,33.93079,168.2,168.17,33.4324221]
[1641339648304,4.0,168.19,168.13,8.50492765]
[1641339648504,37.93079,168.2,168.13,8.50492765]
[1641339648705,37.93079,168.2,168.14,0.67083883]
[1641339648907,33.93079,168.2,168.14,0.67083883]
[1641339649206,4.0,168.19,168.14,0.67083883]
[1641339649407,62.0124,168.19,168.14,0.67083883]
[1641339649606,27.66479,168.16,168.09,0.67083883]
[1641339649808,4.0,168.12,168.09,34.10326093]
[1641339650007,10.517,168.12,168.09,34.10326093]
[1641339650206,6.517,168.12,168.09,34.10326093]
[1641339650708,6.517,168.12,168.1,0.67083883]
[1641339651717,34.18179,168.12,168.1,0.67083883]
[1641339651912,34.18179,168.12,168.07,0.67083883]
[1641339653309,34.18179,168.12,168.05,0.67083883]
[1641339653712,27.66479,168.08,168.05,0.67083883]
[1641339653911,34.32679,168.08,168.05,0.67083883]
[1641339654111,34.32679,168.08,168.06,12.48247928]
[1641339654616,34.32679,168.08,168.02,54.43734033]
[1641339654617,38.32679,168.08,168.02,54.43734033]
[1641339654812,34.32679,168.08,168.02,54.43734033]
[1641339655412,34.32679,168.08,168.03,0.6712625]
[1641339655613,27.66479,168.04,168.03,0.6712625]
[1641339655814,27.66479,168.08,168.03,0.6712625]
[1641339656014,65.0588,168.11,168.02,17.1036846]
[1641339657315,65.0588,168.11,167.99,4.0]
[1641339657516,65.0588,168.11,168.02,4.0]
[1641339657716,27.66479,168.13,168.02,10.144]
[1641339658116,8.86,168.14,168.02,10.144]
[1641339658318,63.326,168.15,168.03,4.0]
[1641339658517,59.4177,168.18,168.06,4.0]
[1641339658718,59.4177,168.18,168.03,4.0]
[1641339658922,4.0,168.12,168.01,62.8555]
[1641339659119,5.531,168.12,168.0,27.66479]
[1641339659318,9.531,168.12,168.02,0.67120456]
[1641339659520,5.531,168.12,168.02,0.67120456]
[1641339659721,5.531,168.12,168.05,27.66479]
[1641339659920,5.531,168.12,168.07,1.78411152]
[1641339660121,5.531,168.12,168.04,8.50492765]
[1641339660322,5.531,168.12,168.06,0.67120456]
[1641339660524,9.22348055,168.13,168.06,0.67120456]
[1641339660722,62.9356,168.12,168.05,0.67120456]
[1641339660923,58.9356,168.12,168.05,0.67120456]
[1641339661425,4.0,168.07,168.0,0.67120456]
[1641339661622,27.66479,168.06,168.0,0.67120456]
[1641339661922,9.22348055,168.11,168.0,0.67120456]
[1641339662124,74.58718055,168.11,168.0,0.67120456]
[1641339662924,22.79903434,168.1,168.0,0.67120456]
[1641339663124,22.79903434,168.1,168.0,4.67120456]
[1641339663325,22.79903434,168.1,168.02,4.0]
[1641339663729,22.79903434,168.1,168.07,27.66479]
[1641339663927,22.79903434,168.1,168.07,33.45979]
[1641339664330,9.22348055,168.11,168.08,0.67120456]
[1641339665731,9.22348055,168.13,168.08,0.67120456]
[1641339666734,9.22348055,168.13,168.08,6.19120456]
[1641339667135,9.22348055,168.13,168.09,0.67120456]
[1641339668437,9.22348055,168.13,168.08,0.67120456]
[1641339672941,9.22348055,168.13,168.05,0.67120456]
[1641339675243,13.22348055,168.13,168.05,0.67120456]
[1641339675641,13.22348055,168.13,168.02,0.67120456]
[1641339675842,27.66479,168.09,168.02,0.67120456]
[1641339676646,33.56159836,168.1,168.02,4.67120456]
[1641339676843,33.56159836,168.1,168.02,9.43820456]
[1641339677043,9.22348055,168.08,168.03,0.67120456]
[1641339677847,9.22348055,168.08,168.02,0.67120456]
[1641339678046,42.78507891,168.11,168.02,0.67120456]
[1641339678645,9.22348055,168.11,168.02,0.67120456]
[1641339681046,9.22348055,168.11,168.02,8.18232072]
[1641339681647,9.22348055,168.11,168.03,0.67120456]
[1641339683449,9.22348055,168.11,167.99,4.67120456]
[1641339683650,33.56159836,168.1,167.99,4.67120456]
[1641339683850,33.56159836,168.1,168.0,4.67120456]
[1641339684052,33.56159836,168.1,168.04,27.66479]
[1641339684552,33.56159836,168.1,168.05,4.0]
[1641339684751,33.56159836,168.1,168.04,31.66479]
[1641339684952,12.58427638,168.09,168.06,0.67120456]
[1641339685353,12.58427638,168.09,168.05,0.67120456]
[1641339688059,12.58427638,168.09,168.08,27.66479]
[1641339688259,33.56159836,168.12,168.08,38.03979]
[1641339688460,12.58312962,168.1,168.08,38.03979]
[1641339688660,12.58312962,168.1,168.09,4.67120456]
[1641339688860,33.56159836,168.13,168.09,0.67120456]
[1641339689462,33.56159836,168.17,168.09,0.67120456]
[1641339690064,27.66479,168.16,168.05,0.67120456]
[1641339690464,33.56159836,168.15,168.05,0.67120456]
[1641339690864,61.7423,168.14,168.05,0.67120456]
[1641339691265,61.7423,168.14,168.05,8.78146497]
[1641339691765,61.7423,168.14,168.05,12.78146497]
[1641339691965,61.7423,168.14,168.06,0.67120456]
[1641339692170,9.22348055,168.13,168.1,27.66479]
[1641339692366,9.22348055,168.13,168.1,33.85279]
[1641339692766,33.56159836,168.14,168.11,0.67120456]
[1641339693569,33.56159836,168.16,168.11,0.67120456]
[1641339694069,33.56159836,168.16,168.14,27.66479]
[1641339694269,33.56159836,168.16,168.14,33.78579]
[1641339694668,33.56159836,168.16,168.15,0.67120456]
[1641339695468,33.56159836,168.16,168.02,4.0]
[1641339695670,4.0,168.14,168.01,16.56159836]
[1641339695869,4.0,168.11,168.01,16.56159836]
[1641339696070,27.66479,168.09,168.01,16.56159836]
[1641339696669,27.66479,168.09,168.01,8.11450337]
[1641339696872,27.66479,168.09,168.02,0.67118419]
[1641339697375,60.8764,168.1,168.02,0.67118419]
[1641339697773,8.66779488,168.08,168.02,0.67118419]
[1641339698178,8.66779488,168.08,168.03,27.66479]
[1641339698571,8.66779488,168.09,168.03,27.66479]
[1641339698974,8.66779488,168.09,168.04,0.67118419]
[1641339699375,8.66779488,168.09,168.01,10.12518419]
[1641339699572,8.66779488,168.09,168.01,6.12518419]
[1641339699776,8.66779488,168.09,168.01,10.12518419]
[1641339699978,8.66779488,168.09,168.02,0.67118419]
[1641339700176,8.66779488,168.09,168.05,27.66479]
[1641339700379,74.45807528,168.12,168.05,27.66479]
[1641339700779,74.45807528,168.12,168.06,0.67118419]
[1641339701377,10.86827528,168.11,168.06,2.66545335]
[1641339702178,10.86827528,168.11,168.07,0.67118419]
[1641339702682,10.86827528,168.11,168.06,0.67118419]
[1641339704581,10.86827528,168.11,168.06,4.67118419]
[1641339704782,10.86827528,168.11,168.07,4.0]
[1641339704983,10.86827528,168.11,168.08,4.0]
[1641339705182,24.20185449,168.15,168.08,0.67118419]
[1641339705884,60.2589,168.17,168.08,0.67118419]
[1641339706382,27.66479,168.16,168.06,0.67118419]
[1641339706584,51.86664449,168.16,168.06,0.67118419]
[1641339706784,51.86664449,168.16,168.09,0.67118419]
[1641339707183,24.20185449,168.16,168.06,0.67118419]
[1641339708388,24.20185449,168.16,168.1,27.66479]
[1641339709088,24.20185449,168.16,168.11,0.67118419]
[1641339710890,28.20185449,168.16,168.11,0.67118419]
[1641339711290,2.2004804,168.15,168.11,0.67118419]
[1641339711489,2.2004804,168.15,168.07,0.67118419]
[1641339711889,2.2004804,168.15,168.06,0.67118419]
[1641339712291,2.2004804,168.15,168.08,27.66479]
[1641339712791,24.20185449,168.16,168.09,0.67118419]
[1641339714696,24.20185449,168.16,168.05,31.85319026]
[1641339714894,4.0,168.15,168.05,31.85319026]
[1641339715095,28.20185449,168.16,168.05,31.85319026]